fUST/lending_fUST_20240813
["ID","MTS","AMOUNT","RATE_DAILY","PERIOD"]
[334710234,1723494643860,-5441.69174231,0.00014925,2]
[334710235,1723494643995,-500.0,0.00014935,2]
[334710236,1723494644006,-500.0,0.00014935,2]
[334710237,1723494644015,-500.0,0.00014935,2]
[334710238,1723494644025,-500.0,0.00014935,2]
[334710239,1723494644034,-500.0,0.00014935,2]
[334710240,1723494644044,-633.81,0.00014935,2]
[334710241,1723494644053,-500.0,0.00014935,2]
[334710242,1723494644063,-500.0,0.00014935,2]
[334710243,1723494644072,-500.0,0.00014935,2]
[334710244,1723494644081,-500.0,0.00014935,2]
[334710245,1723494644090,-500.0,0.00014935,2]
[334710246,1723494644100,-500.0,0.00014935,2]
[334710247,1723494644109,-500.0,0.00014935,2]
[334710248,1723494644118,-272.34864233,0.00014935,2]
[334710249,1723494644127,-500.0,0.00014935,2]
[334710250,1723494644140,-500.0,0.00014935,2]
[334710251,1723494644149,-500.0,0.00014935,2]
[334710252,1723494644158,-844.98,0.00014935,2]
[334710253,1723494644168,-500.0,0.00014935,2]
[334710254,1723494644177,-500.0,0.00014935,2]
[334710255,1723494644187,-885.07,0.00014935,2]
[334710256,1723494644196,-500.0,0.00014935,2]
[334710257,1723494644207,-500.0,0.00014935,2]
[334710258,1723494644217,-500.0,0.00014935,2]
[334710259,1723494644226,-500.17502496,0.00014935,2]
[334710260,1723494644235,-644.69,0.00014935,2]
[334710261,1723494644244,-500.0,0.00014935,2]
[334710262,1723494644254,-500.0,0.00014935,2]
[334710263,1723494644263,-500.0,0.00014935,2]
[334710264,1723494644272,-500.0,0.00014935,2]
[334710265,1723494644282,-500.0,0.00014935,2]
[334710266,1723494644291,-500.0,0.00014935,2]
[334710267,1723494644300,-500.0,0.00014935,2]
[334710268,1723494644310,-772.92,0.00014935,2]
[334710269,1723494644319,-500.0,0.00014935,2]
[334710270,1723494644328,-500.0,0.00014935,2]
[334710271,1723494644337,-660.92,0.00014935,2]
[334710272,1723494644346,-500.0,0.00014935,2]
[334710273,1723494644355,-500.0,0.00014935,2]
[334710274,1723494644364,-500.0,0.00014935,2]
[334710275,1723494644374,-500.0,0.00014935,2]
[334710276,1723494644385,-500.0,0.00014935,2]
[334710277,1723494644401,-1209.57,0.00014935,2]
[334710278,1723494644410,-500.0,0.00014935,2]
[334710279,1723494644420,-500.0,0.00014935,2]
[334710280,1723494644429,-564.48,0.00014935,2]
[334710281,1723494644440,-500.0,0.00014935,2]
[334710282,1723494644451,-500.0,0.00014935,2]
[334710283,1723494644463,-500.0,0.00014935,2]
[334710284,1723494644472,-500.0,0.00014935,2]
[334710285,1723494644481,-523.71,0.00014935,2]
[334710286,1723494644491,-500.0,0.00014935,2]
[334710287,1723494644500,-500.0,0.00014935,2]
[334710288,1723494644509,-1023.33,0.00014935,2]
[334710289,1723494644518,-500.0,0.00014935,2]
[334710290,1723494644527,-500.0,0.00014935,2]
[334710291,1723494644536,-1032.32,0.00014935,2]
[334710292,1723494644545,-500.0,0.00014935,2]
[334710293,1723494644554,-1945.96,0.00014935,2]
[334710294,1723494644564,-500.0,0.00014935,2]
[334710295,1723494644573,-500.0,0.00014935,2]
[334710296,1723494644582,-500.0,0.00014935,2]
[334710297,1723494644591,-500.0,0.00014935,2]
[334710298,1723494644600,-3222.79,0.00014935,2]
[334710299,1723494644611,-500.0,0.00014935,2]
[334710300,1723494644622,-500.0,0.00014935,2]
[334710301,1723494644631,-500.0,0.00014935,2]
[334710302,1723494644645,-500.0,0.00014935,2]
[334710303,1723494644655,-500.0,0.00014935,2]
[334710304,1723494644664,-515.31255409,0.00014935,2]
[334710305,1723494644673,-500.0,0.00014935,2]
[334710306,1723494644682,-1584.03,0.00014935,2]
[334710307,1723494644691,-500.0,0.00014935,2]
[334710308,1723494644700,-838.66,0.00014935,2]
[334710309,1723494644709,-1007.48,0.00014935,2]
[334710310,1723494644719,-500.0,0.00014935,2]
[334710311,1723494644729,-500.0,0.00014935,2]
[334710312,1723494644739,-151.0,0.00014935,2]
[334710313,1723494644748,-500.0,0.00014935,2]
[334710314,1723494644757,-500.0,0.00014935,2]
[334710315,1723494644766,-535.01,0.00014935,2]
[334710316,1723494644775,-500.0,0.00014935,2]
[334710317,1723494644784,-151.0,0.00014935,2]
[334710318,1723494644794,-500.0,0.00014935,2]
[334710319,1723494644803,-151.0,0.00014935,2]
[334710320,1723494644811,-500.0,0.00014935,2]
[334710321,1723494644821,-500.0,0.00014935,2]
[334710322,1723494644830,-500.0,0.00014935,2]
[334710323,1723494644841,-500.0,0.00014935,2]
[334710324,1723494644850,-758.20403751,0.00015,2]
[334710325,1723494644860,-813.18375468,0.00015,2]
[334710326,1723494644869,-817.03180288,0.00015,2]
[334710327,1723494644878,-1109.82295728,0.00015,2]
[334710328,1723494644888,-5441.69174231,0.00015022,2]
[334710329,1723494644898,-500.0,0.00015032,2]
[334710330,1723494644907,-876.77,0.00015032,2]
[334710331,1723494644915,-715.92,0.00015032,2]
[334710332,1723494644926,-500.0,0.00015032,2]
[334710333,1723494644937,-545.32,0.00015032,2]
[334710334,1723494644948,-702.43,0.00015032,2]
[334710335,1723494644959,-694.33,0.00015032,2]
[334710336,1723494644968,-151.0,0.00015032,2]
[334710337,1723494644977,-500.0,0.00015032,2]
[334710338,1723494644986,-609.43,0.00015032,2]
[334710339,1723494644995,-500.0,0.00015032,2]
[334710340,1723494645004,-500.0,0.00015032,2]
[334710341,1723494645014,-500.0,0.00015032,2]
[334710342,1723494645026,-500.0,0.00015032,2]
[334710343,1723494645035,-500.0,0.00015032,2]
[334710344,1723494645043,-500.0,0.00015032,2]
[334710345,1723494645053,-237.271342,0.00015032,2]
[334710346,1723494645062,-1048.48,0.00015032,2]
[334710347,1723494645071,-237.271342,0.00015032,2]
[334710348,1723494645081,-500.0,0.00015032,2]
[334710349,1723494645091,-500.0,0.00015032,2]
[334710350,1723494645100,-538.04,0.00015032,2]
[334710351,1723494645110,-500.0,0.00015032,2]
[334710352,1723494645119,-528.28,0.00015032,2]
[334710353,1723494645128,-500.0,0.00015032,2]
[334710354,1723494645138,-500.0,0.00015032,2]
[334710355,1723494645148,-703.76,0.00015032,2]
[334710356,1723494645157,-500.0,0.00015032,2]
[334710357,1723494645166,-1082.26,0.00015032,2]
[334710358,1723494645175,-997.9,0.00015032,2]
[334710359,1723494645184,-1167.99,0.00015032,2]
[334710360,1723494645193,-500.0,0.00015032,2]
[334710361,1723494645207,-500.0,0.00015032,2]
[334710362,1723494645215,-561.56,0.00015032,2]
[334710363,1723494645225,-6203.66,0.00015032,2]
[334710364,1723494645233,-1225.37,0.00015032,2]
[334710365,1723494645244,-1396.62,0.00015032,2]
[334710366,1723494645252,-707.97,0.00015032,2]
[334710367,1723494645262,-1250.36,0.00015032,2]
[334710368,1723494645271,-500.0,0.00015032,2]
[334710369,1723494645281,-1880.5,0.00015032,2]
[334710370,1723494645290,-791.23,0.00015032,2]
[334710371,1723494645299,-1097.33,0.00015032,2]
[334710372,1723494645309,-500.0,0.00015033,2]
[334710373,1723494645318,-500.0,0.00015033,2]
[334710374,1723494645327,-500.0,0.00015033,2]
[334710375,1723494645336,-506.08531046,0.00015033,2]
[334710376,1723494645346,-500.0,0.00015033,2]
[334710377,1723494645355,-500.0,0.00015033,2]
[334710378,1723494645364,-500.0,0.00015033,2]
[334710379,1723494645373,-500.0,0.00015033,2]
[334710380,1723494645382,-625.27312799,0.00015033,2]
[334710381,1723494645393,-500.0,0.00015033,2]
[334710382,1723494645403,-500.0,0.00015033,2]
[334710383,1723494645415,-1367.7,0.00015033,2]
[334710384,1723494645425,-526.29,0.00015033,2]
[334710385,1723494645434,-500.0,0.00015033,2]
[334710386,1723494645446,-500.0,0.00015033,2]
[334710387,1723494645458,-500.41,0.00015033,2]
[334710388,1723494645467,-500.0,0.00015033,2]
[334710389,1723494645477,-893.59,0.00015033,2]
[334710390,1723494645487,-5441.69174231,0.00015129,2]
[334710391,1723494645496,-500.0,0.00015139,2]
[334710392,1723494645506,-500.0,0.00015139,2]
[334710393,1723494645517,-500.0,0.00015139,2]
[334710394,1723494645527,-500.0,0.00015139,2]
[334710395,1723494645538,-500.0,0.00015139,2]
[334710396,1723494645549,-500.0,0.00015139,2]
[334710397,1723494645560,-500.0,0.00015139,2]
[334710398,1723494645569,-350.52554033,0.00015139,2]
[334710399,1723494645578,-272.13699748,0.00015139,2]
[334710400,1723494645588,-500.0,0.00015139,2]
[334710401,1723494645597,-500.0,0.00015139,2]
[334710402,1723494645606,-500.0,0.00015139,2]
[334710403,1723494645615,-500.0,0.00015139,2]
[334710404,1723494645625,-630.11,0.00015139,2]
[334710405,1723494645636,-500.0,0.00015139,2]
[334710406,1723494645646,-2205.92,0.00015139,2]
[334710407,1723494645655,-510.44,0.00015139,2]
[334710408,1723494645665,-500.0,0.00015139,2]
[334710409,1723494645674,-151.0,0.00015139,2]
[334710410,1723494645683,-151.0,0.00015139,2]
[334710411,1723494645693,-500.0,0.00015139,2]
[334710412,1723494645702,-500.0,0.00015139,2]
[334710413,1723494645711,-500.0,0.00015139,2]
[334710414,1723494645721,-151.0,0.00015139,2]
[334710415,1723494645731,-151.0,0.00015139,2]
[334710416,1723494645741,-500.0,0.00015139,2]
[334710417,1723494645752,-500.0,0.00015139,2]
[334710418,1723494645762,-394.606695,0.00015139,2]
[334710419,1723494645771,-394.606695,0.00015139,2]
[334710420,1723494645781,-500.0,0.00015139,2]
[334710421,1723494645790,-500.0,0.00015139,2]
[334710422,1723494645800,-500.0,0.00015139,2]
[334710423,1723494645811,-500.0,0.00015139,2]
[334710424,1723494645821,-500.0,0.00015139,2]
[334710425,1723494645832,-583.14,0.00015139,2]
[334710426,1723494645844,-387.259417,0.00015139,2]
[334710427,1723494645855,-387.259417,0.00015139,2]
[334710428,1723494645865,-254.649522,0.00015139,2]
[334710429,1723494645874,-254.649522,0.00015139,2]
[334710430,1723494645883,-151.0,0.00015139,2]
[334710431,1723494645898,-330.379295,0.00015139,2]
[334710432,1723494645907,-181.824227,0.00015139,2]
[334710433,1723494645916,-151.0,0.00015139,2]
[334710434,1723494645925,-330.379295,0.00015139,2]
[334710435,1723494645934,-151.0,0.00015139,2]
[334710436,1723494645943,-151.0,0.00015139,2]
[334710437,1723494645952,-598.756957,0.00015139,2]
[334710438,1723494645961,-598.756957,0.00015139,2]
[334710439,1723494645970,-151.0,0.00015139,2]
[334710440,1723494645979,-151.0,0.00015139,2]
[334710441,1723494645989,-151.0,0.00015139,2]
[334710442,1723494645998,-151.0,0.00015139,2]
[334710443,1723494646008,-307.1286107,0.00015155,2]
[334710444,1723494646017,-1322.88,0.00015188,2]
[334710445,1723494646026,-804.97,0.00015188,2]
[334710447,1723494646036,-500.0,0.00015189,2]
[334710448,1723494646046,-2325.05,0.00015189,2]
[334710449,1723494646055,-8081.26,0.00015189,2]
[334710450,1723494646065,-881.04,0.00015189,2]
[334710451,1723494646075,-1430.3,0.00015189,2]
[334710452,1723494646084,-500.0,0.00015198,2]
[334710453,1723494646093,-704.46,0.00015198,2]
[334710454,1723494646102,-626.51,0.00015198,2]
[334710455,1723494646112,-761.33,0.00015198,2]
[334710456,1723494646121,-500.0,0.00015198,2]
[334710457,1723494646130,-907.73,0.00015198,2]
[334710458,1723494646140,-500.0,0.00015198,2]
[334710459,1723494646149,-500.0,0.00015198,2]
[334710462,1723494646159,-500.0,0.00015198,2]
[334710465,1723494646168,-316.03724629,0.00015198,2]
[334710468,1723494646178,-500.0,0.00015198,2]
[334710471,1723494646187,-730.93,0.00015198,2]
[334710474,1723494646197,-580.79,0.00015198,2]
[334710477,1723494646209,-984.2,0.00015198,2]
[334710479,1723494646218,-953.55,0.00015198,2]
[334710481,1723494646231,-500.0,0.00015198,2]
[334710482,1723494646242,-500.0,0.00015198,2]
[334710483,1723494646255,-500.0,0.00015198,2]
[334710484,1723494646264,-500.0,0.00015198,2]
[334710485,1723494646273,-500.0,0.00015198,2]
[334710487,1723494646282,-1054.52,0.00015198,2]
[334710488,1723494646292,-500.0,0.00015198,2]
[334710489,1723494646301,-2806.86,0.00015198,2]
[334710490,1723494646311,-1274.06,0.00015198,2]
[334710491,1723494646320,-49.65782108,0.00015198,2]
[334710498,1723494646610,-1459.89217892,0.00015198,2]
[334710499,1723494646619,-4774.25,0.00015198,2]
[334710500,1723494646628,-1343.68,0.00015198,2]
[334710501,1723494646642,-500.0,0.00015198,2]
[334710502,1723494646653,-1736.36,0.00015198,2]
[334710503,1723494646662,-1252.79,0.00015198,2]
[334710504,1723494646672,-500.0,0.00015198,2]
[334710505,1723494646682,-500.0,0.00015198,2]
[334710506,1723494646692,-500.0,0.00015198,2]
[334710507,1723494646702,-500.0,0.00015198,2]
[334710508,1723494646711,-1677.36,0.00015198,2]
[334710509,1723494646720,-519.93,0.00015198,2]
[334710510,1723494646729,-500.0,0.00015198,2]
[334710511,1723494646739,-500.0,0.00015198,2]
[334710512,1723494646748,-1745.55,0.00015198,2]
[334710513,1723494646757,-980.34,0.00015198,2]
[334710514,1723494646766,-500.0,0.00015198,2]
[334710515,1723494646776,-790.15,0.00015198,2]
[334710516,1723494646785,-500.0,0.00015198,2]
[334710517,1723494646794,-1096.22,0.00015198,2]
[334710518,1723494646803,-8491.66,0.00015198,2]
[334710519,1723494646940,-152.413792,0.00015199,2]
[334710520,1723494646951,-152.413792,0.00015199,2]
[334710521,1723494646960,-2688.02,0.00015199,2]
[334710522,1723494646970,-1512.69,0.00015199,2]
[334710523,1723494646979,-1778.52,0.00015199,2]
[334710524,1723494646988,-237.675017,0.00015199,2]
[334710525,1723494646998,-237.675017,0.00015199,2]
[334710526,1723494647007,-930.33,0.00015199,2]
[334710527,1723494647017,-1679.42,0.00015199,2]
[334710528,1723494647029,-151.0,0.00015199,2]
[334710529,1723494647040,-151.0,0.00015199,2]
[334710530,1723494647052,-960.34,0.00015199,2]
[334710531,1723494647061,-500.0,0.00015199,2]
[334710532,1723494647070,-722.96,0.00015199,2]
[334710533,1723494647080,-4476.45,0.00015199,2]
[334710534,1723494647089,-500.0,0.00015199,2]
[334710535,1723494647098,-500.0,0.00015199,2]
[334710536,1723494647108,-1717.38,0.00015199,2]
[334710537,1723494647119,-500.0,0.00015199,2]
[334710538,1723494647128,-776.23,0.00015199,2]
[334710539,1723494647140,-729.68,0.00015199,2]
[334710540,1723494647150,-500.0,0.00015199,2]
[334710541,1723494647160,-922.83,0.00015199,2]
[334710542,1723494647169,-500.0,0.00015199,2]
[334710543,1723494647178,-1616.29,0.00015199,2]
[334710544,1723494647187,-500.0,0.00015199,2]
[334710545,1723494647196,-2636.72,0.00015199,2]
[334710546,1723494647206,-564.92,0.00015199,2]
[334710547,1723494647216,-3828.76,0.00015199,2]
[334710548,1723494647225,-150.112233,0.000152,2]
[334710549,1723494647234,-500.0,0.00015209,2]
[334710550,1723494647243,-500.0,0.00015209,2]
[334710551,1723494647254,-500.0,0.00015209,2]
[334710552,1723494647263,-500.0,0.00015209,2]
[334710553,1723494647272,-500.0,0.00015209,2]
[334710554,1723494647282,-633.81,0.00015209,2]
[334710555,1723494647292,-500.0,0.00015209,2]
[334710556,1723494647301,-500.0,0.00015209,2]
[334710557,1723494647310,-500.0,0.00015209,2]
[334710558,1723494647319,-500.0,0.00015209,2]
[334710559,1723494647328,-500.0,0.00015209,2]
[334710560,1723494647337,-500.0,0.00015209,2]
[334710561,1723494647346,-500.0,0.00015209,2]
[334710562,1723494647355,-500.0,0.00015209,2]
[334710563,1723494647364,-633.27062661,0.00015209,2]
[334710564,1723494647374,-844.98,0.00015209,2]
[334710565,1723494647383,-500.0,0.00015209,2]
[334710566,1723494647393,-500.0,0.00015209,2]
[334710567,1723494647402,-885.07,0.00015209,2]
[334710568,1723494647411,-500.0,0.00015209,2]
[334710569,1723494647422,-500.0,0.00015209,2]
[334710570,1723494647431,-644.69,0.00015209,2]
[334710571,1723494647440,-500.0,0.00015209,2]
[334710572,1723494647449,-500.0,0.00015209,2]
[334710573,1723494647458,-500.0,0.00015209,2]
[334710574,1723494647467,-500.0,0.00015209,2]
[334710575,1723494647477,-500.0,0.00015209,2]
[334710576,1723494647486,-500.0,0.00015209,2]
[334710577,1723494647495,-500.0,0.00015209,2]
[334710578,1723494647504,-772.92,0.00015209,2]
[334710579,1723494647515,-500.0,0.00015209,2]
[334710580,1723494647524,-660.92,0.00015209,2]
[334710581,1723494647534,-500.0,0.00015209,2]
[334710582,1723494647542,-500.0,0.00015209,2]
[334710583,1723494647552,-500.0,0.00015209,2]
[334710584,1723494647561,-500.0,0.00015209,2]
[334710585,1723494647570,-1209.57,0.00015209,2]
[334710586,1723494647580,-500.0,0.00015209,2]
[334710587,1723494647589,-500.0,0.00015209,2]
[334710588,1723494647599,-564.48,0.00015209,2]
[334710589,1723494647608,-500.0,0.00015209,2]
[334710590,1723494647617,-500.0,0.00015209,2]
[334710591,1723494647626,-532.3408573,0.00015209,2]
[334710592,1723494647636,-500.0,0.00015209,2]
[334710593,1723494647645,-523.71,0.00015209,2]
[334710594,1723494647654,-500.0,0.00015209,2]
[334710595,1723494647664,-500.0,0.00015209,2]
[334710596,1723494647673,-1023.33,0.00015209,2]
[334710597,1723494647682,-500.0,0.00015209,2]
[334710598,1723494647692,-500.0,0.00015209,2]
[334710599,1723494647701,-1032.32,0.00015209,2]
[334710600,1723494647710,-500.0,0.00015209,2]
[334710601,1723494647719,-1945.96,0.00015209,2]
[334710602,1723494647729,-500.0,0.00015209,2]
[334710603,1723494647738,-500.0,0.00015209,2]
[334710604,1723494647747,-3222.79,0.00015209,2]
[334710605,1723494647756,-500.0,0.00015209,2]
[334710606,1723494647765,-500.0,0.00015209,2]
[334710607,1723494647774,-500.0,0.00015209,2]
[334710608,1723494647783,-1584.03,0.00015209,2]
[334710609,1723494647792,-150.91505608,0.00015209,2]
[334710610,1723494647801,-838.66,0.00015209,2]
[334710611,1723494647810,-1007.48,0.00015209,2]
[334710612,1723494647820,-500.0,0.00015209,2]
[334710613,1723494647829,-151.0,0.00015209,2]
[334710614,1723494647838,-500.0,0.00015209,2]
[334710615,1723494647847,-500.0,0.00015209,2]
[334710616,1723494647856,-535.01,0.00015209,2]
[334710617,1723494647866,-500.0,0.00015209,2]
[334710618,1723494647875,-151.0,0.00015209,2]
[334710619,1723494647884,-500.0,0.00015209,2]
[334710620,1723494647893,-151.0,0.00015209,2]
[334710621,1723494647902,-500.0,0.00015209,2]
[334710622,1723494647911,-627.49681754,0.00015209,2]
[334710623,1723494647920,-500.0,0.00015209,2]
[334710624,1723494647929,-207.3044688,0.00015231,2]
[334710625,1723494647938,-153.0,0.00015231,2]
[334710626,1723494647947,-500.0,0.00015306,2]
[334710627,1723494647957,-876.77,0.00015306,2]
[334710628,1723494647966,-715.92,0.00015306,2]
[334710629,1723494647975,-500.0,0.00015306,2]
[334710630,1723494647984,-545.32,0.00015306,2]
[334710631,1723494647993,-702.43,0.00015306,2]
[334710632,1723494648002,-694.33,0.00015306,2]
[334710633,1723494648011,-500.0,0.00015306,2]
[334710634,1723494648021,-609.43,0.00015306,2]
[334710635,1723494648031,-500.0,0.00015306,2]
[334710636,1723494648039,-500.0,0.00015306,2]
[334710637,1723494648049,-500.0,0.00015306,2]
[334710638,1723494648057,-500.0,0.00015306,2]
[334710639,1723494648067,-500.0,0.00015306,2]
[334710640,1723494648076,-237.271342,0.00015306,2]
[334710641,1723494648086,-1048.48,0.00015306,2]
[334710642,1723494648095,-237.271342,0.00015306,2]
[334710643,1723494648105,-500.0,0.00015306,2]
[334710644,1723494648114,-500.0,0.00015306,2]
[334710645,1723494648126,-538.04,0.00015306,2]
[334710646,1723494648137,-500.0,0.00015306,2]
[334710647,1723494648147,-528.28,0.00015306,2]
[334710648,1723494648157,-357.83160174,0.00015306,2]
[334710649,1723494648167,-703.76,0.00015306,2]
[334710650,1723494648179,-500.0,0.00015306,2]
[334710651,1723494648190,-1082.26,0.00015306,2]
[334710652,1723494648199,-997.9,0.00015306,2]
[334710653,1723494648214,-1167.99,0.00015306,2]
[334710654,1723494648223,-500.0,0.00015306,2]
[334710655,1723494648232,-500.0,0.00015306,2]
[334710656,1723494648241,-561.56,0.00015306,2]
[334710657,1723494648252,-6203.66,0.00015306,2]
[334710658,1723494648261,-1225.37,0.00015306,2]
[334710659,1723494648271,-1396.62,0.00015306,2]
[334710660,1723494648280,-707.97,0.00015306,2]
[334710661,1723494648289,-1250.36,0.00015306,2]
[334710662,1723494648299,-151.0,0.00015306,2]
[334710663,1723494648308,-151.0,0.00015306,2]
[334710664,1723494648318,-218.526785,0.00015306,2]
[334710665,1723494648327,-500.0,0.00015306,2]
[334710666,1723494648337,-1880.5,0.00015306,2]
[334710667,1723494648346,-791.23,0.00015306,2]
[334710668,1723494648355,-1097.33,0.00015306,2]
[334710669,1723494648365,-500.0,0.00015307,2]
[334710670,1723494648376,-500.0,0.00015307,2]
[334710671,1723494648391,-500.0,0.00015307,2]
[334710672,1723494648401,-500.0,0.00015307,2]
[334710673,1723494648410,-500.0,0.00015307,2]
[334710674,1723494648419,-500.0,0.00015307,2]
[334710675,1723494648429,-500.0,0.00015307,2]
[334710676,1723494648439,-500.0,0.00015307,2]
[334710677,1723494648449,-1367.7,0.00015307,2]
[334710678,1723494648459,-526.29,0.00015307,2]
[334710679,1723494648469,-500.0,0.00015307,2]
[334710680,1723494648478,-500.41,0.00015307,2]
[334710681,1723494648487,-500.0,0.00015307,2]
[334710682,1723494648498,-893.59,0.00015307,2]
[334710683,1723494648508,-1000.0,0.00015325,2]
[334710684,1723494648517,-153.0,0.00015397,2]
[334710685,1723494648526,-153.0,0.00015397,2]
[334710686,1723494648535,-153.0,0.00015397,2]
[334710687,1723494648544,-153.0,0.00015397,2]
[334710688,1723494648554,-1000.0,0.00015405,2]
[334710689,1723494648563,-500.0,0.00015413,2]
[334710690,1723494648572,-500.0,0.00015413,2]
[334710691,1723494648582,-500.0,0.00015413,2]
[334710692,1723494648591,-500.0,0.00015413,2]
[334710693,1723494648600,-500.0,0.00015413,2]
[334710694,1723494648610,-500.0,0.00015413,2]
[334710695,1723494648618,-500.0,0.00015413,2]
[334710696,1723494648627,-500.0,0.00015413,2]
[334710697,1723494648638,-630.11,0.00015413,2]
[334710698,1723494648647,-500.0,0.00015413,2]
[334710699,1723494648656,-2205.92,0.00015413,2]
[334710700,1723494648666,-510.44,0.00015413,2]
[334710701,1723494648675,-530.11960051,0.00015413,2]
[334710702,1723494648685,-500.0,0.00015413,2]
[334710703,1723494648694,-500.0,0.00015413,2]
[334710704,1723494648704,-500.0,0.00015413,2]
[334710705,1723494648713,-151.0,0.00015413,2]
[334710706,1723494648722,-500.0,0.00015413,2]
[334710707,1723494648732,-500.0,0.00015413,2]
[334710708,1723494648741,-394.606695,0.00015413,2]
[334710709,1723494648751,-394.606695,0.00015413,2]
[334710710,1723494648760,-500.0,0.00015413,2]
[334710711,1723494648770,-500.0,0.00015413,2]
[334710712,1723494648780,-500.0,0.00015413,2]
[334710713,1723494648790,-583.14,0.00015413,2]
[334710714,1723494648799,-387.259417,0.00015413,2]
[334710715,1723494648809,-387.259417,0.00015413,2]
[334710716,1723494648819,-254.649522,0.00015413,2]
[334710717,1723494648829,-254.649522,0.00015413,2]
[334710718,1723494648840,-151.0,0.00015413,2]
[334710719,1723494648851,-330.379295,0.00015413,2]
[334710720,1723494648861,-151.0,0.00015413,2]
[334710721,1723494648870,-330.379295,0.00015413,2]
[334710722,1723494648879,-151.0,0.00015413,2]
[334710723,1723494648889,-598.756957,0.00015413,2]
[334710724,1723494648899,-598.756957,0.00015413,2]
[334710725,1723494648908,-257.120067,0.00015413,2]
[334710726,1723494648918,-151.0,0.00015413,2]
[334710727,1723494648927,-151.0,0.00015413,2]
[334710728,1723494648937,-5322.59176007,0.00015431,2]
[334710729,1723494648946,-1000.0,0.00015459,2]
[334710730,1723494648956,-1000.0,0.00015461,2]
[334710731,1723494648965,-1322.88,0.00015462,2]
[334710732,1723494648975,-804.97,0.00015462,2]
[334710733,1723494648985,-500.0,0.00015463,2]
[334710734,1723494648994,-2325.05,0.00015463,2]
[334710735,1723494649003,-5847.86413516,0.00015463,2]
[334710736,1723494656680,203.88272635,0.00013956,2]
[334710737,1723494658441,412.94081029,0.0001212,2]
[334710738,1723494660937,372.70044747,0.0001212,2]
[334710739,1723494663417,165.53506923,0.0001212,2]
[334710740,1723494663546,154.83726039,0.0001212,2]
[334710741,1723494669054,208.45850869,0.0001212,2]
[334710742,1723494672019,370.37936412,0.0001212,2]
[334710743,1723494676234,3090.72018399,0.0001212,2]
[334710744,1723494679821,1164.02523181,0.0001212,2]
[334710745,1723494680703,188.19804262,0.0001212,2]
[334710746,1723494691454,495.8032044,0.0001212,2]
[334710747,1723494691729,309.53569723,9.999e-05,2]
[334710748,1723494697820,1765.28037207,0.0001212,2]
[334710749,1723494875272,179.7746116,0.00013741,2]
[334710751,1723495379993,933.09765316,9.999e-05,2]
[334710757,1723495736408,196.82657408,0.0001,2]
[334710760,1723495817911,267.32984024,9.999e-05,2]
[334710761,1723495817938,333.35319713,9.999e-05,2]
[334710784,1723495832607,-161.605078,0.00014247,2]
[334710785,1723495832617,-207.04515842,0.00014539,2]